Cogmind - Beta 13 @@@ ROGUE MODE // 2024.07.30 @ 22:36:41 Player: nfd Result: Destroyed by Y-45 Defender with Beam Rifle Performance ------------- Evolutions (1) 500 Regions Visited (2) 400 Robots Destroyed (10) 50 Value Destroyed (226) 226 Prototype IDs (3) 60 Alien Tech Used (0) 0 Bonus (0) 0 TOTAL SCORE: 1236 Bonus ------- None Cogmind --------- Core Integrity 0/400 Matter 206/300 Energy 226/265 System Corruption 0% Temperature Cool (15) Movement Core (300) Ox5 Location -9/Materials Parts ------- > --- POWER (1) -------- Improved Ion Engine > --- PROPULSION (3) --- (None) > --- UTILITY (3) ------ Medium Storage Unit > --- WEAPON (2) ------- (None) > --- INVENTORY (10) --- Small Storage Unit Peak State ------------ > --- POWER ------------ Light Ion Engine > --- PROPULSION ------- Light Treads Wheel Wheel > --- UTILITY ---------- Medium Storage Unit Sensor Array Tractor Beam > --- WEAPON ----------- Welding Torch > --- INVENTORY -------- Light Treads Small Storage Unit [Rating: 8] Favorites ----------- Power Ion Engine Engine Ion Engine Propulsion Aluminum Leg Treads Light Treads Leg Aluminum Leg Wheel Wheel Utility Small Storage Unit Device Sensor Array Storage Small Storage Unit Weapon Assault Rifle Energy Gun Medium Laser Ballistic Gun Assault Rifle Launcher Grenade Launcher Special Weapon Welding Torch Build | -11 -10 -9 ------- Run | Yrd Mat Mat Slots Evolved 2 | . . 2 Power . | . . . Propulsion 1 | . . 1 Utility 1 | . . 1 Weapon . | . . . Parts Attached 25 | 8 12 5 Power 5 | 2 2 1 Engine 5 | 2 2 1 Core . | . . . Reactor . | . . . Propulsion 7 | 3 2 2 Treads 3 | 1 . 2 Leg 2 | 2 . . Wheel 2 | . 2 . Hover . | . . . Flight . | . . . Utility 5 | 1 3 1 Device 2 | . 1 1 Storage 3 | 1 2 . Processor . | . . . Hackware . | . . . Protection . | . . . Artifact . | . . . Weapon 8 | 2 5 1 Energy Gun 1 | . 1 . Energy Cannon . | . . . Ballistic Gun 5 | 2 3 . Ballistic Cannon . | . . . Launcher 1 | . 1 . Special Weapon 1 | . . 1 Impact Weapon . | . . . Slashing Weapon . | . . . Piercing Weapon . | . . . Special Melee Weapon . | . . . Unidentified Prototypes . | . . . Parts Lost 16 | . 8 8 Power 3 | . 2 1 Propulsion 6 | . 2 4 Utility 2 | . . 2 Weapon 5 | . 4 1 Highest Loss Streak 8 | . 8 5 To Critical Strikes . | . . . Average Slot Usage (%) 72 | . 75 65 Engine 12 | . 13 9 Treads 3 | . . 9 Leg 14 | . 21 . Wheel 8 | . 5 13 Device 5 | . . 17 Storage 11 | . 12 11 Ballistic Gun 11 | . 17 . Launcher 2 | . 3 . Naked Turns . | . . . Heaviest Build 19 | 13 18 19 Greatest Support 40 | 20 20 40 Greatest Overweight (x) 6 | . 3 6 Average Overweight (x) . | . . . Largest Inventory Capacity 10 | 8 10 10 Average Capacity 8 | 6 7 10 Most Carried 8 | 5 8 5 Average Carried 4 | 2 6 2 Final Capacity 10 | 8 10 10 Final Carried 5 | 5 5 1 Class Distribution -------------------- 100% | Mutant Dominant Class ---------------- Mutant | -10/Materials Mutant | -9/Materials Resources | -11 -10 -9 ----------- Run | Yrd Mat Mat Matter Collected 406 | 164 52 190 Remotely . | . . . Salvage Created 108 | . 108 . Parts 17 | . 17 . Haulers Intercepted . | . . . Recyclers Shooed . | . . . Parts Field Recycled . | . . . Retrieved Matter . | . . . Parts Self-Destructed . | . . . Prevented . | . . . Kills | -11 -10 -9 ------- Run | Yrd Mat Mat Combat Hostiles Destroyed 10 | . 10 . Guns 2 | . 2 . AOE 8 | . 8 . Classes Destroyed 2 | . 2 . Swarmer 6 | . 6 . Grunt 4 | . 4 . Best Kill Streak 6 | . 6 . Combat Bots Only 6 | . 6 . Max Kills in Single Turn 3 | . 3 . Gunslinging . | . . . Exploded 3 | . 3 . Melee . | . . . Uniques/NPCs Destroyed . | . . . Combat | -11 -10 -9 -------- Run | Yrd Mat Mat Hostile Shots Fired 188 | . 118 70 Missed 54 | . 37 17 Damage Taken 1827 | . 913 914 Core 607 | . 205 402 Absorbed by Shields . | . . . Core Remaining (%) 59 | 100 18 . Volleys Fired 27 | . 25 2 Largest 2 | . 2 1 Hottest 70 | . 70 20 Shots Fired 30 | . 28 2 Gun 17 | . 17 . Cannon . | . . . Launcher 11 | . 11 . Special 2 | . . 2 Kinetic 10 | . 10 . Thermal 9 | . 7 2 Explosive 11 | . 11 . Electromagnetic . | . . . Robot Hit Streak 5 | . 5 . Robot Miss Streak 5 | . 3 5 Penetration Max . | . . . Secondary Targets 1 | . 1 . Max Gunslinging Chain 1 | . 1 . Shots Hit Robots 14 | . 14 . Core Hits 14 | . 14 . Critical Kills . | . . . Critical Parts Destroyed . | . . . Critical Strikes 1 | . 1 . Burn 1 | . 1 . Melee Attacks . | . . . Impact . | . . . Slashing . | . . . Piercing . | . . . Sneak Attacks . | . . . Combat Hostiles . | . . . Follow-up Attacks . | . . . Damage Inflicted 662 | . 662 . Guns 141 | . 141 . Cannons . | . . . Explosions 521 | . 521 . Melee . | . . . Ramming . | . . . Kinetic 54 | . 54 . Thermal 87 | . 87 . Explosive 521 | . 521 . Electromagnetic . | . . . Impact . | . . . Slashing . | . . . Piercing . | . . . Highest Corruption . | . . . Average Corruption . | . . . Corruption Purged . | . . . Corruption Blocked . | . . . Overload Shots . | . . . Overflow Damage 29 | . 29 . Projectiles . | . . . Explosions 29 | . 29 . Melee . | . . . Knockbacks . | . . . Impact . | . . . Kinetic . | . . . Secondary . | . . . Self-Inflicted Damage 53 | . 53 . Shots 2 | . 2 . Rammed . | . . . Targets Rammed . | . . . Kicked . | . . . Crushed . | . . . Highest Temperature 82 | . 82 7 Average Temperature 21 | . 21 7 Received Heat Transfer 639 | . 444 195 Siege Activations . | . . . Robots Corrupted . | . . . Combat Hostiles . | . . . Parts Fried . | . . . Impact Corruptions . | . . . Robots Melted . | . . . Combat Hostiles . | . . . Parts Melted . | . . . Heat Transferred 333 | . 333 . Parts Sabotaged . | . . . Parts Stolen . | . . . Parts Stripped . | . . . Power Chain Reactions . | . . . Alert | -11 -10 -9 ------- Run | Yrd Mat Mat Peak Influence 347 | . 347 56 Initial 36 | . . 36 Average 96 | . 137 37 Maximum Alert Level 1 | . 1 . Low Security (%) 80 | 100 68 100 Level 1 19 | . 31 . Level 2 . | . . . Level 3 . | . . . Level 4 . | . . . Level 5 . | . . . High Security . | . . . Max Security . | . . . Squads Dispatched 5 | . 4 1 Investigation 2 | . 2 . Extermination . | . . . Reinforcement 3 | . 2 1 Assault . | . . . Garrison . | . . . Intercept . | . . . Searches Triggered . | . . . Construction Impeded . | . . . Haulers Reinforced . | . . . Active Scanning Responses . | . . . Cargo Convoy Interrupts . | . . . Stealth | -11 -10 -9 --------- Run | Yrd Mat Mat Distress Signals 1 | . 1 . Communications Jammed . | . . . Distress Signals . | . . . Times Spotted 32 | . 19 13 Peak Tracking Total 12 | . 6 12 Tactical Retreats 1 | . 1 . Traps | -11 -10 -9 ------- Run | Yrd Mat Mat Traps Triggered 2 | . 2 . Indirectly . | . . . Trap Hack Attempts . | . . . Triggered . | . . . Disarmed . | . . . Reprogrammed . | . . . Reused . | . . . Traps Extracted . | . . . Installed . | . . . Triggered . | . . . Machines | -11 -10 -9 ---------- Run | Yrd Mat Mat Machines Disabled 3 | . 3 . Max in Single Turn 1 | . 1 . Machines Repaired . | . . . Machines Dismantled . | . . . Machines Sabotaged . | . . . Overloaded Fab Kills . | . . . Hacking | -11 -10 -9 --------- Run | Yrd Mat Mat Machines Accessed 7 | . 4 3 Terminals 7 | . 4 3 Fabricators . | . . . Repair Stations . | . . . Recycling Units . | . . . Scanalyzers . | . . . Garrison Access . | . . . Total Hacks 10 | . 5 5 Successful 3 | . 1 2 Failed 7 | . 4 3 Catastrophic 2 | . 1 1 Database Lockouts . | . . . Manual 4 | . 3 1 Terminals 10 | . 5 5 Fabricators . | . . . Repair Stations . | . . . Recycling Units . | . . . Scanalyzers . | . . . Garrison Access . | . . . Terminal Hacks 3 | . 1 2 Prototype ID Bank 1 | . 1 . Alert Level 1 | . . 1 Zone Layout 1 | . . 1 Fabricator Hacks . | . . . Repair Station Hacks . | . . . Recycling Unit Hacks . | . . . Scanalyzer . | . . . Garrison Access Hacks . | . . . Unauthorized Hacks . | . . . Terminals . | . . . Fabricators . | . . . Repair Stations . | . . . Recycling Units . | . . . Scanalyzers . | . . . Garrison Access . | . . . Data Cores Recovered . | . . . Used . | . . . Hacking Detections 7 | . 4 3 Full Trace Events . | . . . Feedback Events . | . . . Feedback Blocked . | . . . Robot Schematics Acquired . | . . . Robots Built . | . . . Authchips . | . . . Time . | . . . Total Robot Build Rating . | . . . Part Schematics Acquired . | . . . Parts Built . | . . . Authchips . | . . . Time . | . . . Total Part Build Rating . | . . . Parts Repaired . | . . . Time . | . . . Parts Recycled . | . . . Recycled Matter . | . . . Retrieved Matter . | . . . Retrieved Components . | . . . Parts Scanalyzed . | . . . Part Schematics Acquired . | . . . Parts Damaged . | . . . Bothacking | -11 -10 -9 ------------ Run | Yrd Mat Mat Used RIF Installer . | . . . Robots Hacked . | . . . Non-combat . | . . . Combat . | . . . Robot Hacks Applied . | . . . Relay Couplers Released . | . . . Fabnet Peak Effective % . | . . . Robots Rewired . | . . . Allies Hacked . | . . . Hacks Repelled . | . . . Allies | -11 -10 -9 -------- Run | Yrd Mat Mat Total Allies . | . . . Largest Group . | . . . Highest-Rated Group . | . . . Highest-Rated Ally . | . . . Total Orders . | . . . Ally Attacks . | . . . Total Damage . | . . . Kills . | . . . Allies Corrupted . | . . . Allies Melted . | . . . Intel | -11 -10 -9 ------- Run | Yrd Mat Mat Robot Analysis Total . | . . . Derelict Logs Recovered . | . . . Drone Launches . | . . . Drone Recoveries . | . . . Exploration | -11 -10 -9 ------------- Run | Yrd Mat Mat Turns Passed 697 | 70 434 193 Spaces Moved 537 | 49 324 164 Core 19 | 8 9 2 Treads 43 | 4 . 39 Legs 255 | 37 218 . Wheels 220 | . 97 123 Hover . | . . . Flight . | . . . Fastest Speed 50 | 50 80 80 Average Speed 106 | 111 108 102 Slowest Speed 350 | 160 200 350 Overloaded Moves . | . . . Propulsion Burnouts . | . . . Robots Hopped . | . . . Cave-ins Triggered . | . . . Exploration Rate (%) 30 | 3 72 16 Regions Visited 2 Branch Regions . Pre-discovered Areas . | . . . Known Exits Taken . | . . . Unknown Exits Taken 2 | 1 1 . Scrap Searched . | . . . Spaces Dug . | . . . Terrain Destroyed 42 | . 42 . Melee . | . . . Projectile . | . . . AOE 42 | . 42 . Terrain Rammed . | . . . Walls Destroyed . | . . . Machines Disabled . | . . . Actions | -11 -10 -9 --------- Run | Yrd Mat Mat Total 625 | 60 378 187 Wait 20 | . 4 16 Move 535 | 48 323 164 Hop . | . . . Pick Up 9 | 3 6 . Fast Attach 16 | 7 8 1 Attach 8 | . 4 4 Detach 4 | 1 3 . Swap 1 | 1 . . Drop 5 | . 5 . Fire 27 | . 25 2 Melee . | . . . Ram . | . . . Kick . | . . . Crush . | . . . Escape Stasis . | . . . Rewire . | . . . Trap . | . . . Miscellaneous . | . . . Route ------- -11/Scrapyard -10/Materials (discovered 4 exits: *Mat x2 / [*Min x2]) -9/Materials History --------- Turn | Location | Event 10 | -11/Scrapyard | Discovered new exit (range 14) 71 | -11/Scrapyard | Entered Materials 238 | -10/Materials | Discovered new exit (range 5) 259 | -10/Materials | Discovered new exit (range 16) 311 | -10/Materials | Build established: Mutant 341 | -10/Materials | Discovered new exit (range 9) 415 | -10/Materials | Core integrity fell below 50% 471 | -10/Materials | Lost 8 parts (2p2n4w) 481 | -10/Materials | Discovered new exit (range 16) 503 | -10/Materials | Core integrity fell below 20% 505 | -10/Materials | Entered another Materials area 505 | -9/Materials | Evolved 2 slots: Propulsion x1, Utility x1 657 | -9/Materials | Lost 3 parts (2n1w) 679 | -9/Materials | Core integrity fell below 50% 689 | -9/Materials | Core integrity fell below 20% 698 | -9/Materials | Destroyed by Y-45 Defender with Beam Rifle Last Messages --------------- 00533_ Connecting with Terminal... >>Layout(Zone) Retrieving Zone 6G layout... Downloaded map data. 00582_ K-01 Serf collects debris. 00624_ Wheel destroyed. 00624_ K-01 Serf collects debris. 00626_ Wheel destroyed. 00626_ Welding Torch destroyed. 00628_ K-01 Serf collects debris. 00661_ ALERT: Hostiles spotted, dispatching reinforcements to Terminal M012. 00662_ Lgt. Ion Engine destroyed. 00671_ Critical hit (Burn: +37). 00678_ Lgt. Treads destroyed. 00684_ Acquired Imp. Ion Engine. 00691_ Lgt. Treads destroyed. 00693_ Tractor Beam destroyed. 00696_ Sensor Array destroyed. 00697_ L-31 Rogue destroyed. Map ----- +----------------------------------------------------+ | ?????????????????????????????????????????????????? | | ?????????????????????????????????????????????????? | | ?????????????????????????????????????????????????? | | ?????????????????????????????????????????????????? | | ?????????????????????????????????????????????????? | | ?????????????????????????????????????????????????? | | ?????????????????????????????????????????????????? | | ?????????????????????????????????????????????????? | | ?????????????????????????????????????????????????? | | ?????????????????????????? ??????????????????????? | | ?????????????????????????? ??????????????????????? | | ?????????????????????????? ??????????????????????? | | ?????????????????????????? ?????????????????????? | | ?????????????????????????? ?????????????????????? | | ######???????????????????? ?????????????????????? | | #######?????????????? ?????????????????????? | | # #?????????????# #?????????????????????? | | # #?????????????# #?????????????????????? | | + #?????????????# #?????????????????????? | | # #?????????????# #?????????????????????? | | # #?????????????# #?????????????????????? | | ## ##############?#s#?????????????????????? | | ## ## #?#s#?????????????????????? | | ## ## !!! ###u###???????????????????? | | ####### ## !!! [# =s #???????????????????? | | ??????# ## !!! # @%""#???????????????????? | | ??????# ## # =""#???????????????????? | | ?????## ##########+### T"#???????????????????? | | ?????# ####### #ug ""#???????????????????? | | ?????# #Ybg""#???????????????????? | | ?????+ g #???????????????????? | | ?????# # #???????????????????? | | ?????# ####### #Y""" #???????????????????? | | ?????# #####?????## ## """ #???????????????????? | | ?????# ???????????# ## """ #???????????????????? | | ?????# ???????????# ## #???????????????????? | | ?????# ???????????# ########???????????????????? | | ?????#????????????# #??????????????????????????? | | ??????????????????# #??????????????????????????? | | ??????????????????# #??????????????????????????? | | ??????????????????# ??????????????????????????? | | ??????????????????+ ??????????????????????????? | | ??????????????????# ?????????????????????????? | | ??????????????????# #??????????????????????????? | | ???????????????????? ????????????????????????????? | | ?????????????????????????????????????????????????? | | ?????????????????????????????????????????????????? | | ?????????????????????????????????????????????????? | | ?????????????????????????????????????????????????? | | ?????????????????????????????????????????????????? | +----------------------------------------------------+ Best States ------------- Heat Dissipation 28 Energy Generation 12 Energy Capacity 265 Matter Stores 216 Matter Capacity 300 Sight Range 16 Robot Scan Range 14 Terrain Scan Density 10 Evasion (%) 55 Recoil Reduction 2 Item Schematics ----------------- None Robot Schematics ------------------ None Fabricated ------------ Nothing Alien Tech Used ----------------- None Achievements -------------- None Challenges ------------ None Game ------ Seed QuantumDeuteriumChronowheel Manual? 0 Play Time 00:19:07 Cumulative 39.7 hours Start 2024.07.30 @ 22:18:03 End 2024.07.30 @ 22:36:41 Sessions 1 Manual Loads 0 Difficulty Rogue Special Mode None Game No. 18 Rogue 18 Adventurer 0 Explorer 0 Win Type - Total 0 Types 0/0/0/0/0/0/0/0/0 Lore% 22 Gallery% 28 Achievement% 22 Wizard Run 0 Options --------- Layout 1 ASCII 1 Keyboard 1 Movement Vi Keybinds 0 Fullscreen 1 Font 16/Tamsyn Map View 55x38 Zoom Use 0% Tactical HUD 1 Map Filters NONE Filters NONE Steam 1 RUN: f7f21759-3adb-4053-ba3f-5da86de05ee9